bitfinex-derivatives/quotes_SOLF0:USTF0_20241211
["timestamp","ask_amount","ask_price","bid_price","bid_amount"]
[1733879291525,18.22949973,215.25,215.16,5.4901959]
[1733879291825,18.22949973,215.25,215.09,2.98]
[1733879292127,18.22949973,215.29,215.15,5.62343685]
[1733879292322,2.98,215.28,215.15,5.62343685]
[1733879292526,2.3212,215.26,215.2,2.3218]
[1733879292731,2.98,215.28,215.16,2.98]
[1733879293622,18.22949973,215.32,215.15,5.62343685]
[1733879293828,2.98,215.32,215.19,18.22949973]
[1733879294024,2.98,215.32,215.15,26.83293658]
[1733879294223,18.22949973,215.31,215.15,8.60343685]
[1733879295230,18.22949973,215.31,215.15,26.83293658]
[1733879295231,2.98,215.3,215.15,26.83293658]
[1733879295423,2.98,215.3,215.15,23.85293658]
[1733879295621,2.98,215.3,215.15,26.83293658]
[1733879296723,18.22949973,215.35,215.15,26.83293658]
[1733879296922,2.98,215.34,215.15,26.83293658]
[1733879297128,2.3205,215.33,215.26,2.3212]
[1733879297623,2.3206,215.32,215.26,2.3212]
[1733879298125,18.22949973,215.35,215.15,26.83293658]
[1733879298327,18.22949973,215.39,215.19,18.22949973]
[1733879298531,2.98,215.38,215.23,18.22949973]
[1733879298840,2.98,215.39,215.24,2.98]
[1733879299227,2.32,215.37,215.32,2.3206]
[1733879299432,2.98,215.39,215.32,2.3206]
[1733879300531,5.2998,215.39,215.32,2.3205]
[1733879300726,2.98,215.39,215.32,2.3205]
[1733879300931,21.20949973,215.39,215.23,2.98]
[1733879301228,21.20949973,215.39,215.26,5.65706682]
[1733879302125,18.22949973,215.43,215.26,5.65706682]
[1733879302331,20.47618443,215.42,215.26,5.65706682]
[1733879302529,2.98,215.41,215.27,18.22949973]
[1733879303030,2.98,215.41,215.26,5.65706682]
[1733879304034,2.32,215.38,215.33,2.3205]
[1733879304735,2.3201,215.37,215.31,2.3206]
[1733879304930,2.98,215.41,215.31,2.3206]
[1733879305138,18.22949973,215.36,215.26,5.65706682]
[1733879305338,2.98,215.35,215.2,2.98]
[1733879305930,2.3206,215.32,215.26,2.3212]
[1733879306130,2.98,215.35,215.2,2.98]
[1733879306329,18.22949973,215.4,215.23,18.22949973]
[1733879306540,18.22949973,215.44,215.23,18.22949973]
[1733879306733,18.22949973,215.44,215.2,2.98]
[1733879306734,23.45217317,215.43,215.27,18.22949973]
[1733879306939,2.98,215.43,215.28,2.98]
[1733879307334,18.22949973,215.4,215.24,2.98]
[1733879307535,18.22949973,215.4,215.23,2.98]
[1733879307839,20.47479333,215.39,215.23,2.98]
[1733879308037,20.47479333,215.38,215.2,2.98]
[1733879308238,18.22949973,215.36,215.2,2.98]
[1733879308440,2.98,215.35,215.2,2.98]
[1733879308834,2.3208,215.3,215.25,2.3212]
[1733879309035,2.98,215.35,215.2,2.98]
[1733879309435,2.98,215.35,215.28,2.3209]
[1733879309634,2.98,215.35,215.2,2.98]
[1733879310235,2.98,215.35,215.19,18.22949973]
[1733879310436,18.22949973,215.32,215.15,5.62343685]
[1733879310644,20.4884783,215.31,215.15,5.62343685]
[1733879310938,18.22949973,215.28,215.15,5.62343685]
[1733879311144,23.46948983,215.27,215.15,5.62343685]
[1733879311341,2.3219,215.2,215.15,5.62343685]
[1733879311641,191.4210152,215.35,215.07,2.98]
[1733879311642,2.98,215.21,215.07,2.98]
[1733879311831,2.98,215.2,215.07,2.98]
[1733879312739,2.98,215.2,215.05,2.98]
[1733879312940,11.82172823,215.19,215.08,2.3231]
[1733879313143,21.20949973,215.2,215.03,2.98]
[1733879313340,21.20949973,215.2,215.02,44.4350706]
[1733879313341,20.47639273,215.19,215.02,44.4350706]
[1733879313542,18.22949973,215.16,215.04,5.48528197]
[1733879313739,18.22949973,215.16,214.86,13.93]
[1733879313740,18.22949973,215.08,214.87,26.22562241]
[1733879313939,2.98,215.07,214.88,20.55637984]
[1733879314140,2.98,215.07,214.97,5.65472875]
[1733879316143,2.98,215.07,214.99,2.3241]
[1733879316750,2.3236,215.04,214.97,5.65472875]
[1733879316950,2.98,215.07,214.89,2.32677183]
[1733879317151,18.22949973,215.04,214.89,2.32677183]
[1733879317546,2.3243,214.98,214.92,5.55188367]
[1733879317747,2.98,214.97,214.89,2.32677183]
[1733879317945,2.98,214.96,214.89,2.32677183]
[1733879318145,2.98,214.96,214.93,2.3247]
[1733879318951,18.22949973,215.04,214.93,2.3247]
[1733879319147,3.1,215.03,214.93,2.3247]
[1733879319351,2.3241,215.0,214.91,7.79531066]
[1733879319546,3.1,215.03,214.91,5.47041066]
[1733879319855,3.1,215.02,214.91,5.47041066]
[1733879320051,18.22949973,215.0,214.73,48.3]
[1733879320244,18.22949973,214.96,214.78,18.22949973]
[1733879320445,3.1,214.95,214.78,18.22949973]
[1733879320648,18.22949973,214.92,214.77,3.1]
[1733879321050,2.3256,214.86,214.8,5.5505604]
[1733879321351,3.1,214.86,214.72,3.1]
[1733879321649,3.1,214.86,214.79,5.65272823]
[1733879321650,2.3257,214.85,214.79,5.65272823]
[1733879322043,3.1,214.86,214.7,18.22949973]
[1733879322245,3.1,214.86,214.71,3.1]
[1733879322551,3.1,214.86,214.7,21.32949973]
[1733879322845,3.1,214.86,214.75,5.70129982]
[1733879323045,18.22949973,214.84,214.75,5.70129982]
[1733879323249,18.22949973,214.84,214.66,21.32949973]
[1733879323646,18.22949973,214.8,214.43,48.36]
[1733879323848,3.1,214.79,214.59,18.22949973]
[1733879324053,3.1,214.79,214.7,5.46565798]
[1733879324250,2.3266,214.77,214.7,5.46565798]
[1733879324951,2.3267,214.76,214.67,2.3275]
[1733879325147,18.22949973,214.76,214.6,5.42991612]
[1733879325453,18.22949973,214.76,214.61,2.32980755]
[1733879325658,3.1,214.79,214.61,2.32980755]
[1733879325659,18.22949973,214.72,214.61,2.32980755]
[1733879325857,2.3278,214.66,214.61,2.32980755]
[1733879326555,2.3279,214.65,214.61,2.32980755]
[1733879326855,3.1,214.67,214.61,2.32980755]
[1733879327061,2.328,214.63,214.61,2.32980755]
[1733879329257,59.66102776,214.62,214.61,2.32980755]
[1733879329454,2.3291,214.54,214.43,1.7807]
[1733879329651,29.83051388,214.52,214.46,5.66596111]
[1733879329850,3.12,214.54,214.48,2.3296]
[1733879330055,3.12,214.57,214.47,2.33132839]
[1733879330252,3.12,214.58,214.47,4.15602839]
[1733879330449,29.83051388,214.6,214.47,4.15602839]
[1733879330450,32.95051388,214.6,214.47,4.15602839]
[1733879330955,32.95051388,214.6,214.47,1.8247]
[1733879331152,32.95051388,214.6,214.53,2.3291]
[1733879331357,32.95051388,214.6,214.47,1.8247]
[1733879331556,32.95051388,214.6,214.47,3.59]
[1733879332160,3.12,214.6,214.47,3.59]
[1733879332565,29.83051388,214.64,214.47,3.59]
[1733879332755,3.12,214.63,214.47,3.59]
[1733879332959,3.12,214.63,214.48,0.85625229]
[1733879333258,3.12,214.63,214.49,0.85625229]
[1733879333452,3.12,214.63,214.5,3.12]
[1733879333852,3.12,214.63,214.5,3.97627251]
[1733879334053,3.12,214.65,214.5,3.97627251]
[1733879334258,3.12,214.65,214.5,3.12]
[1733879334561,5.4478,214.65,214.57,2.3286]
[1733879334762,3.12,214.65,214.5,3.12]
[1733879335061,29.83051388,214.64,214.55,2.3288]
[1733879335365,2.328,214.63,214.55,2.3288]
[1733879335563,29.83051388,214.64,214.55,2.3288]
[1733879335966,2.3283,214.61,214.53,2.329]
[1733879336161,29.83051388,214.64,214.49,3.12]
[1733879336757,2.3282,214.62,214.54,2.329]
[1733879336962,29.83051388,214.6,214.47,3.59]
[1733879337161,3.12,214.59,214.48,0.8563658]
[1733879337365,3.12,214.59,214.48,1.71275458]
[1733879337366,4.9075,214.59,214.48,1.71275458]
[1733879337562,29.83051388,214.56,214.48,0.8563658]
[1733879337972,32.16086436,214.56,214.48,0.8563658]
[1733879338367,2.3293,214.51,214.48,0.8563658]
[1733879338870,2.3295,214.5,214.48,0.8563658]
[1733879339371,3.12,214.51,214.48,0.8563658]
[1733879340868,2.3295,214.5,214.48,0.8563658]
[1733879341273,3.12,214.51,214.48,0.8563658]
[1733879341667,29.83051388,214.52,214.48,0.8563658]
[1733879341971,3.12,214.52,214.48,0.8563658]
[1733879342169,2.33035048,214.56,214.48,0.8563658]
[1733879343172,2.33035048,214.56,214.49,0.85639373]
[1733879343373,2.33035048,214.56,214.54,2.329]
[1733879343770,2.33035048,214.56,214.55,0.85613628]
[1733879343968,1e-08,214.56,214.55,0.85613628]
[1733879344266,1e-08,214.56,214.54,2.329]
[1733879344668,1e-08,214.56,214.55,0.85602327]
[1733879344974,1e-08,214.56,214.55,30.68653715]
[1733879345269,3.5977,214.69,214.55,0.85602327]
[1733879345468,3.5977,214.69,214.59,29.83051388]
[1733879345469,1.8289,214.69,214.59,29.83051388]
[1733879345675,3.12,214.75,214.6,8.5939]
[1733879345975,3.12,214.75,214.6,9.4497592]
[1733879346166,3.12,214.75,214.6,8.5939]
[1733879346869,3.12,214.75,214.6,5.4739]
[1733879346870,29.83051388,214.73,214.6,5.4739]
[1733879347268,2.328614,214.72,214.6,5.4739]
[1733879347473,2.328614,214.72,214.68,2.3274]
[1733879347668,2.328614,214.72,214.64,8.65303164]
[1733879348472,2.328614,214.72,214.68,2.3275]
[1733879348871,2.328614,214.72,214.64,8.65303164]
[1733879349068,2.328614,214.72,214.7,2.3272]
[1733879349772,2.328614,214.72,214.68,2.3274]
[1733879350072,2.328614,214.72,214.64,8.65303164]
[1733879351080,5.3239,214.78,214.67,29.83051388]
[1733879351081,1.7414,214.78,214.67,29.83051388]
[1733879351270,18.31057513,214.88,214.69,18.31057513]
[1733879351572,2.3257,214.85,214.7,4.8489]
[1733879351974,2.3257,214.85,214.71,1.8308]
[1733879352172,2.3259,214.83,214.71,1.8308]
[1733879352474,7.33948841,214.87,214.71,1.8308]
[1733879352968,18.31057513,214.84,214.71,1.8308]
[1733879353169,18.31057513,214.8,214.64,5.53303164]
[1733879353368,18.31057513,214.76,214.64,5.53303164]
[1733879353569,18.31057513,214.72,214.55,3.14]
[1733879353768,3.14,214.71,214.56,2.56485404]
[1733879353976,3.14,214.71,214.63,2.328]
[1733879353977,2.3275,214.69,214.63,2.328]
[1733879354169,3.14,214.71,214.56,1.7089]
[1733879354372,3.14,214.71,214.57,19.1664959]
[1733879354575,3.14,214.71,214.65,2.3277]
[1733879354771,37.95322655,214.92,214.65,18.31057513]
[1733879355077,3.7247,214.86,214.65,18.31057513]
[1733879355377,2.32720502,214.85,214.66,5.3441]
[1733879355669,18.31057513,214.83,214.66,5.3441]
[1733879355868,18.31057513,214.83,214.66,6.6858]
[1733879356073,18.31057513,214.79,214.63,5.72067454]
[1733879356273,18.31057513,214.75,214.63,5.72067454]
[1733879356473,4.8777,214.74,214.63,5.72067454]
[1733879356677,2.3272,214.71,214.65,2.3278]
[1733879357773,2.3271,214.72,214.65,2.3278]
[1733879358276,2.3271,214.72,214.63,5.72067454]
[1733879358475,8.4739,214.74,214.63,5.72067454]
[1733879359068,2.3273,214.7,214.63,5.72067454]
[1733879359273,8.4739,214.74,214.63,5.72067454]
[1733879359780,4.8777,214.74,214.71,2.3271]
[1733879359973,1.7377,214.74,214.65,3.14]
[1733879360168,18.31057513,214.83,214.65,3.14]
[1733879360169,3.14,214.83,214.65,21.45057513]
[1733879360477,3.5443,214.84,214.73,18.31057513]
[1733879360674,3.5443,214.84,214.72,3.14]
[1733879360879,2.3261,214.81,214.7,3.14]
[1733879361079,3.5443,214.84,214.7,3.14]
[1733879361275,1.7289,214.84,214.73,18.31057513]
[1733879361575,2.32720502,214.85,214.73,18.31057513]
[1733879361781,2.32720502,214.85,214.71,3.14]
[1733879361980,2.32720502,214.85,214.7,3.14]
[1733879362178,2.3262,214.8,214.7,3.14]
[1733879362480,3.14,214.82,214.7,3.14]
[1733879362675,3.14,214.82,214.69,18.31057513]
[1733879362880,3.14,214.82,214.69,21.45057513]
[1733879363083,3.14,214.82,214.74,5.60639932]
[1733879363276,3.14,214.82,214.66,1.863]
[1733879363277,32.89727954,214.82,214.66,1.863]
[1733879363471,29.75727954,214.78,214.64,3.5934]
[1733879364178,32.89727954,214.82,214.65,29.75727954]
[1733879364374,3.14,214.82,214.65,29.75727954]
[1733879364571,3.14,214.82,214.69,5.6421587]
[1733879364778,3.14,214.82,214.69,8.7821587]
[1733879364980,2.3264,214.78,214.73,2.3269]
[1733879365176,29.75727954,214.81,214.69,5.6421587]
[1733879365375,29.75727954,214.77,214.64,3.5934]
[1733879365576,4.9515,214.76,214.64,1.8079]
[1733879365777,4.9515,214.76,214.6,3.14]
[1733879366082,29.75727954,214.69,214.51,3.5983]
[1733879366276,3.14,214.68,214.52,3.99600324]
[1733879366479,3.14,214.68,214.53,0.85600324]
[1733879366677,2.3278,214.65,214.59,2.3284]
[1733879367077,29.75727954,214.69,214.51,3.5983]
[1733879367078,29.75727954,214.69,214.61,5.47059799]
[1733879367277,2.3277,214.66,214.61,7.79879799]
[1733879367474,2.3277,214.66,214.61,5.47059799]
[1733879368384,3.14,214.68,214.57,2.3286]
[1733879368581,1.7166,214.67,214.57,2.3286]
[1733879369182,29.75727954,214.65,214.51,3.5983]
[1733879369584,1.8863,214.64,214.53,2.329]
[1733879369780,1.8863,214.64,214.48,1.862]
[1733879370182,29.75727954,214.61,214.41,3.6614]
[1733879370384,3.14,214.6,214.49,5.49779526]
[1733879370778,1.7837,214.59,214.49,5.49779526]
[1733879371788,2.3291,214.54,214.49,5.49779526]
[1733879371986,1.7837,214.59,214.46,2.3298]
[1733879372282,2.3286,214.58,214.47,5.56546904]
[1733879372486,1.8863,214.64,214.51,29.75727954]
[1733879372987,2.3283,214.61,214.51,29.75727954]
[1733879373183,1.8863,214.64,214.5,2.3294]
[1733879373389,1.8863,214.64,214.47,38.46274858]
[1733879373390,3.14,214.6,214.47,8.70546904]
[1733879373588,3.14,214.6,214.47,5.56546904]
[1733879373787,1.8075,214.59,214.47,5.56546904]
[1733879373982,2.3281,214.63,214.51,29.75727954]
[1733879374189,1.8863,214.64,214.51,29.75727954]
[1733879374886,1.8863,214.64,214.55,2.3289]
[1733879375789,2.3281,214.63,214.56,2.3288]
[1733879376584,4.8566,214.67,214.54,3.14]
[1733879376585,1.7166,214.67,214.54,3.14]
[1733879376784,4.8566,214.67,214.55,29.75727954]
[1733879377395,4.8566,214.67,214.54,3.14]
[1733879377894,2.3278,214.65,214.59,2.3285]
[1733879378091,4.8566,214.67,214.52,1.8519]
[1733879378291,2.3285,214.59,214.52,2.3291]
[1733879378592,4.8566,214.67,214.52,2.3291]
[1733879378593,3.14,214.61,214.52,2.3291]
[1733879378988,4.8642,214.61,214.52,2.3291]
[1733879379190,4.8642,214.61,214.47,5.56546904]
[1733879379386,29.75727954,214.58,214.43,3.16]
[1733879379588,29.75727954,214.58,214.41,1.8519]
[1733879379793,34.62147954,214.61,214.43,2.3301]
[1733879379794,2.3296,214.49,214.43,2.3301]
[1733879379991,29.75727954,214.54,214.39,3.16]
[1733879379992,3.16,214.51,214.39,3.16]
[1733879380199,3.16,214.51,214.35,36.41067954]
[1733879380392,3.16,214.51,214.35,33.25067954]
[1733879380695,29.75727954,214.5,214.39,5.58698273]
[1733879381187,2.3301,214.44,214.37,2.3308]
[1733879381892,2.3303,214.43,214.37,2.3308]
[1733879382094,3.16,214.45,214.27,29.75727954]
[1733879382295,3.16,214.45,214.28,3.16]
[1733879382491,2.3307,214.39,214.28,3.16]
[1733879382789,1.7752,214.44,214.31,5.68683046]
[1733879382996,2.3304,214.41,214.31,5.68683046]
[1733879383297,3.16,214.43,214.34,2.3311]
[1733879383491,3.16,214.43,214.31,5.68683046]
[1733879383698,3.16,214.45,214.31,35.44411]
[1733879384789,3.16,214.45,214.35,29.75727954]
[1733879385092,3.16,214.49,214.35,29.75727954]
[1733879385394,1.8611,214.51,214.36,18.36814341]
[1733879385594,3.16,214.5,214.46,2.3298]
[1733879385797,3.16,214.5,214.4,18.36814341]
[1733879385999,3.16,214.5,214.4,21.52814341]
[1733879386398,3.16,214.56,214.4,21.52814341]
[1733879386598,3.16,214.56,214.47,2.3297]
[1733879386901,3.16,214.56,214.44,18.36814341]
[1733879387196,3.16,214.56,214.4,3.16]
[1733879387197,3.16,214.56,214.48,2.3296]
[1733879387397,3.16,214.56,214.45,29.82335735]
[1733879387597,3.16,214.56,214.46,3.16]
[1733879388096,3.16,214.6,214.46,4.9071]
[1733879389203,2.3288,214.57,214.51,2.3293]
[1733879389503,3.16,214.6,214.46,4.9071]
[1733879390105,4.6533,214.76,214.46,4.9071]
[1733879390106,191.4210152,214.79,214.53,29.82335735]
[1733879390308,1.7891,214.72,214.57,29.82335735]
[1733879390498,1.7891,214.72,214.57,32.98335735]
[1733879390702,2.3273,214.71,214.64,2.3279]
[1733879390998,4.9491,214.72,214.57,32.98335735]
[1733879391595,6.755,214.72,214.57,32.98335735]
[1733879392803,2.3274,214.69,214.57,32.98335735]
[1733879393708,2.3274,214.69,214.63,2.328]
[1733879393912,2.3274,214.69,214.57,32.98335735]
[1733879393913,6.755,214.72,214.53,29.82335735]
[1733879394207,6.755,214.72,214.54,3.16]
[1733879394401,2.3274,214.69,214.54,3.16]
[1733879395302,2.3274,214.69,214.58,2.3285]
[1733879395506,2.3275,214.68,214.54,3.16]
[1733879395702,1.8059,214.72,214.57,29.82335735]
[1733879395903,1.8059,214.72,214.58,1.8644]
[1733879397111,2.3272,214.71,214.65,2.3278]
[1733879398013,2.3272,214.71,214.66,2.3277]
[1733879398407,1.8059,214.72,214.58,1.8644]
[1733879398608,1.8059,214.72,214.6,2.3284]
[1733879398909,2.3277,214.66,214.6,2.3284]
[1733879400305,1.8059,214.72,214.58,4.1929]
[1733879400306,2.3278,214.65,214.58,4.1929]
[1733879400509,1.8059,214.72,214.58,1.8644]
[1733879400811,29.82335735,214.69,214.5,33.49775735]
[1733879401009,1.8295,214.68,214.5,38.44855735]
[1733879401203,3.16,214.67,214.5,38.44855735]
[1733879402115,2.328,214.64,214.57,2.3287]
[1733879402316,3.16,214.67,214.5,38.44855735]
[1733879402812,3.16,214.67,214.54,2.329]
[1733879402813,2.3284,214.6,214.54,2.329]
[1733879403012,1.8295,214.68,214.5,38.44855735]
[1733879403013,3.16,214.61,214.5,1.7908]
[1733879403312,3.16,214.61,214.5,2.3293]
[1733879403613,1.8357,214.6,214.5,2.3293]
[1733879403821,1.8357,214.6,214.47,3.16]
[1733879403822,1.8295,214.68,214.48,3.16]
[1733879404019,31.68825735,214.67,214.48,3.16]
[1733879404212,29.82335735,214.63,214.48,8.84689214]
[1733879404413,3.16,214.62,214.48,5.68689214]
[1733879404708,3.16,214.62,214.42,3.16]
[1733879404709,29.82335735,214.59,214.42,3.16]
[1733879404913,29.82335735,214.59,214.45,5.61979017]
[1733879405111,1.7995,214.58,214.45,5.61979017]
[1733879405414,1.7995,214.58,214.41,3.7343]
[1733879405415,1.7995,214.58,214.44,2.3301]
[1733879405607,1.7995,214.58,214.41,3.7343]
[1733879405608,29.82335735,214.55,214.41,1.8547]
[1733879405808,5.0493,214.54,214.41,1.8547]
[1733879406012,29.82335735,214.51,214.4,5.61938456]
[1733879406410,29.82335735,214.51,214.38,1.8227]
[1733879406613,6.9234,214.54,214.39,29.82335735]
[1733879406814,6.9234,214.54,214.39,35.54957006]
[1733879407110,6.9234,214.54,214.39,5.72621271]
[1733879407317,2.3298,214.47,214.4,2.3305]
[1733879407518,3.16,214.48,214.39,0.16317]
[1733879407815,3.16,214.47,214.39,0.16317]
[1733879408113,3.7634,214.54,214.39,29.98652735]
[1733879408114,3.16,214.53,214.39,29.98652735]
[1733879408510,3.7634,214.54,214.4,1.8887]
[1733879408716,3.7634,214.54,214.4,5.0487]
[1733879408916,29.82335735,214.61,214.43,29.82335735]
[1733879408917,3.06,214.59,214.43,29.82335735]
[1733879409114,5.297,214.63,214.47,29.82335735]
[1733879409313,3.06,214.62,214.48,3.06]
[1733879409523,4.8923,214.63,214.54,2.3289]
[1733879409718,1.7124,214.68,214.51,29.82335735]
[1733879409915,1.7124,214.68,214.55,29.82335735]
[1733879410219,1.7124,214.68,214.56,1.8521]
[1733879410615,1.7124,214.68,214.63,2.328]
[1733879411317,4.04144788,214.68,214.56,1.8521]
[1733879413221,2.3278,214.65,214.58,2.3285]
[1733879413425,4.04144788,214.68,214.56,1.8521]
[1733879413714,4.04144788,214.68,214.52,1.8329]
[1733879413715,33.86480523,214.68,214.53,2.329]
[1733879413928,29.82335735,214.64,214.45,1.826]
[1733879414120,29.82335735,214.6,214.45,1.826]
[1733879414320,4.7997,214.59,214.43,1.8423]
[1733879415219,2.3293,214.51,214.45,2.33]
[1733879415417,3.06,214.52,214.43,1.8423]
[1733879416212,2.329,214.55,214.46,2.3299]
[1733879416517,1.8032,214.63,214.47,29.82335735]
[1733879417223,1.8032,214.63,214.43,34.72565735]
[1733879417419,2.329,214.54,214.43,34.72565735]
[1733879417618,3.06,214.55,214.43,4.9023]
[1733879417823,3.06,214.54,214.43,1.8423]
[1733879418123,3.06,214.53,214.43,1.8423]
[1733879418422,3.06,214.54,214.43,1.8423]
[1733879418623,2.3292,214.52,214.43,1.8423]
[1733879419020,3.06,214.54,214.43,1.8423]
[1733879419224,3.06,214.54,214.41,1.8067]
[1733879419430,3.06,214.54,214.4,1.826]
[1733879419431,29.82335735,214.52,214.4,1.826]
[1733879419720,29.82335735,214.52,214.39,0.16317]
[1733879420321,2.33,214.45,214.39,2.49377]
[1733879420621,3.06,214.44,214.39,0.16317]
[1733879420821,5.3901,214.44,214.39,0.16317]
[1733879421017,3.06,214.44,214.39,0.16317]
[1733879421229,3.06,214.47,214.39,0.16317]
[1733879421429,3.06,214.51,214.39,29.98652735]
[1733879421624,3.06,214.51,214.4,1.7744]
[1733879421825,3.06,214.51,214.4,3.6021]
[1733879422627,3.06,214.51,214.37,5.4661337]
[1733879423226,3.06,214.51,214.34,3.06]
[1733879423227,3.06,214.51,214.32,3.6021]
[1733879424127,3.06,214.51,214.35,5.54345041]
[1733879424322,2.3299,214.46,214.4,2.3305]
[1733879424526,3.06,214.51,214.35,5.54345041]
[1733879424727,8.75896158,214.51,214.35,5.54345041]
[1733879425219,3.06,214.51,214.35,5.54345041]
[1733879425422,2.3297,214.48,214.35,5.54345041]
[1733879425625,3.06,214.51,214.35,5.54345041]
[1733879426019,3.06,214.51,214.39,2.3305]
[1733879426219,3.06,214.51,214.35,5.54345041]
[1733879426419,2.33,214.46,214.4,2.3304]
[1733879426624,3.06,214.45,214.35,5.54345041]
[1733879427622,2.3303,214.43,214.38,2.3306]
[1733879428027,35.37851597,214.52,214.35,5.54345041]
[1733879428232,3.06,214.51,214.35,5.54345041]
[1733879429626,2.3299,214.46,214.42,2.3303]
[1733879429833,3.06,214.51,214.42,2.3303]
[1733879430023,5.55515862,214.52,214.35,5.54345041]
[1733879430224,1.7507,214.53,214.38,29.82335735]
[1733879430426,1.7507,214.53,214.42,29.82335735]
[1733879430624,1.7507,214.53,214.43,1.7623]
[1733879430831,3.06,214.56,214.43,3.5686]
[1733879431534,3.06,214.56,214.43,1.7623]
[1733879432135,5.64146591,214.59,214.43,1.7623]
[1733879432339,3.06,214.55,214.43,1.7623]
[1733879433333,3.06,214.55,214.45,2.33]
[1733879434532,2.3292,214.52,214.47,2.3298]
[1733879434736,3.06,214.55,214.43,1.7623]
[1733879435050,5.64146591,214.59,214.46,29.82335735]
[1733879435051,2.3285,214.59,214.46,29.82335735]
[1733879435240,1.7369,214.6,214.47,1.7847]
[1733879435431,3.06,214.61,214.47,1.7847]
[1733879435740,2.3284,214.6,214.56,2.3288]
[1733879435942,3.06,214.61,214.47,1.7847]
[1733879436134,32.88335735,214.61,214.44,1.719]
[1733879436733,29.82335735,214.57,214.43,1.7623]
[1733879437040,2.3297,214.48,214.39,3.06]
[1733879437435,3.06,214.49,214.42,2.3302]
[1733879437642,32.88335735,214.49,214.35,3.5686]
[1733879437835,32.88335735,214.49,214.35,1.8496]
[1733879438043,32.88335735,214.49,214.36,2.3309]
[1733879438333,32.88335735,214.49,214.32,7.38287659]
[1733879438536,29.82335735,214.45,214.28,1.8496]
[1733879438737,29.82335735,214.41,214.28,4.18299555]
[1733879438933,3.02,214.4,214.28,4.18299555]
[1733879439135,3.02,214.4,214.28,9.85708065]
[1733879439841,2.3309,214.37,214.31,2.3315]
[1733879440034,3.02,214.4,214.31,2.3315]
[1733879441039,3.02,214.4,214.28,2.33339555]
[1733879441235,3.73,214.39,214.28,2.33339555]
[1733879441646,2.3315,214.31,214.28,2.33339555]
[1733879441840,5.3515,214.31,214.28,2.33339555]
[1733879442339,3.02,214.31,214.28,2.33339555]
[1733879442641,3.02,214.36,214.28,2.33339555]
[1733879443234,1.7128,214.35,214.28,2.33339555]
[1733879443949,2.3316,214.3,214.28,2.33339555]
[1733879444146,3.02,214.29,214.28,2.33339555]
[1733879447046,2.3318,214.28,214.26,0.2259]
[1733879447240,32.84335735,214.29,214.11,1.8149]
[1733879447446,32.84335735,214.29,214.15,2.3332]
[1733879447845,32.84335735,214.29,214.13,5.63453974]
[1733879448049,32.84335735,214.29,214.14,2.3333]
[1733879448345,29.82335735,214.25,214.11,1.8149]
[1733879448539,29.82335735,214.25,214.13,2.3334]
[1733879449148,2.3325,214.22,214.13,2.3334]
[1733879449346,3.02,214.21,214.15,2.3332]
[1733879449547,3.02,214.21,214.11,1.8149]
[1733879449942,3.02,214.21,214.14,2.3333]
[1733879450446,3.02,214.21,214.11,1.8149]
[1733879450649,2.3329,214.19,214.11,1.8149]
[1733879450854,3.02,214.21,214.11,1.8149]
[1733879451052,2.333,214.17,214.11,2.3336]
[1733879451252,3.02,214.21,214.11,2.3336]
[1733879451758,2.333,214.17,214.11,2.3336]
[1733879451959,3.02,214.21,214.06,1.8225]
[1733879452253,1.7398,214.2,214.06,1.8225]
[1733879452450,2.3333,214.15,214.06,1.8225]
[1733879452659,1.7398,214.2,214.08,5.63223144]
[1733879452953,2.3331,214.17,214.08,5.63223144]
[1733879453159,1.7398,214.2,214.1,2.3338]